fUST/lending_fUST_20251226
["ID","MTS","AMOUNT","RATE_DAILY","PERIOD"]
[399830009,1766711439419,-5957.16,0.00012329,2]
[399830010,1766711439430,-4964.3,0.00012329,2]
[399830011,1766711439441,-4136.91,0.00012329,2]
[399830012,1766711439456,-3447.43,0.00012329,2]
[399830013,1766711439466,-2872.86,0.00012329,2]
[399830014,1766711439477,-2394.05,0.00012329,2]
[399830015,1766711439487,-1995.04,0.00012329,2]
[399830016,1766711439498,-1662.53,0.00012329,2]
[399830017,1766711439509,-1385.44,0.00012329,2]
[399830018,1766711439519,-1154.54,0.00012329,2]
[399830019,1766711439531,-962.11,0.00012329,2]
[399830020,1766711439542,-801.76,0.00012329,2]
[399830021,1766711439554,-668.14,0.00012329,2]
[399830022,1766711439565,-556.78,0.00012329,2]
[399830023,1766711439577,-463.98,0.00012329,2]
[399830024,1766711439588,-386.65,0.00012329,2]
[399830025,1766711439599,-322.21,0.00012329,2]
[399830026,1766711439609,-268.51,0.00012329,2]
[399830027,1766711439620,-223.76,0.00012329,2]
[399830028,1766711439631,-186.46,0.00012329,2]
[399830029,1766711439641,-155.39,0.00012329,2]
[399830030,1766711439652,-776.96,0.00012329,2]
[399830031,1766711439663,-187.585006,0.00012329,2]
[399830032,1766711439673,-187.585006,0.00012329,2]
[399830033,1766711439684,-187.585006,0.00012329,2]
[399830034,1766711439694,-187.585006,0.00012329,2]
[399830035,1766711439705,-187.585006,0.00012329,2]
[399830036,1766711439715,-187.585006,0.00012329,2]
[399830037,1766711439726,-187.585006,0.00012329,2]
[399830038,1766711439736,-187.585006,0.00012329,2]
[399830039,1766711439748,-1000.0,0.00012434,2]
[399830040,1766711439760,-500.0,0.00012466,2]
[399830041,1766711439770,-1000.0,0.00012498,2]
[399830042,1766711439781,-500.0,0.0001274,2]
[399830043,1766711439792,-1000.0,0.000128,2]
[399830044,1766711439802,-500.0,0.00013014,2]
[399830045,1766711439812,-613.0,0.00013127,2]
[399830046,1766711439823,-1041.66666667,0.0001323,2]
[399830048,1766711439833,-160.0,0.0001323,2]
[399830049,1766711439847,-500.0,0.00013288,2]
[399830050,1766711439858,-231.0,0.00013374,2]
[399830051,1766711439868,-500.0,0.00013562,2]
[399830052,1766711439879,-160.0,0.00013699,2]
[399830053,1766711439890,-500.0,0.00013836,2]
[399830054,1766711439901,-500.0,0.0001411,2]
[399830055,1766711439911,-260.0,0.00014247,2]
[399830056,1766711439921,-500.0,0.00014384,2]
[399830057,1766711439932,-400.81808063,0.00014776,2]
[399830058,1766711439942,-360.0,0.00014795,2]
[399830059,1766711439954,-1000.0,0.000148,3]
[399830060,1766711439964,-1546.0347844,0.00014837,2]
[399830061,1766711439974,-1000.0,0.00014945,2]
[399830062,1766711439985,-500.0,0.00014961,2]
[399830063,1766711439996,-150.0,0.00015068,2]
[399830064,1766711440007,-161.295249,0.00015068,2]
[399830065,1766711440018,-2000.0,0.00015194,7]
[399830066,1766711440029,-213.22373629,0.00015205,2]
[399830067,1766711440039,-460.0,0.00015342,2]
[399830070,1766711440050,-258.0,0.00015374,2]
[399830072,1766711440061,-2279.02971131,0.00015395,2]
[399830074,1766711440072,-157.0,0.000156,2]
[399830076,1766711440083,-970.38696975,0.00015682,5]
[399830077,1766711440094,-459.9601997,0.00015682,5]
[399830079,1766711440105,-379.85495188,0.0001579,21]
[399830081,1766711440116,-1000.0,0.000158,4]
[399830083,1766711440127,-1054012.7447256,0.0001584,2]
[399830085,1766711440138,-560.0,0.0001589,2]
[399830087,1766711440150,-3881.547879,0.00015938,5]
[399830089,1766711440162,-1839.84079881,0.00015938,5]
[399830091,1766711440177,-426.3624042,0.00015961,2]
[399830092,1766711440189,-453.04670403,0.00015961,2]
[399830093,1766711440200,-767.45232757,0.00015961,2]
[399830094,1766711440211,-1364.35969345,0.00015961,2]
[399830096,1766711440222,-815.48406725,0.00015961,2]
[399830097,1766711440232,-2316.80093696,0.00016016,2]
[399830099,1766711440242,-379.85495188,0.00016184,22]
[399830100,1766711440253,-939.75164833,0.00016191,2]
[399830101,1766711440265,-160.0,0.000162,2]
[399830102,1766711440277,-158.0,0.000162,3]
[399830103,1766711440288,-156.6350092,0.000162,4]
[399830104,1766711440300,-1000.0,0.000162,5]
[399830105,1766711440311,-151.0,0.00016306,3]
[399830106,1766711440322,-500.0,0.00016306,3]
[399830107,1766711440333,-478.75725327,0.00016306,3]
[399830108,1766711440343,-251.92855197,0.00016306,3]
[399830109,1766711440354,-151.0,0.00016306,3]
[399830110,1766711440368,-500.0,0.00016306,3]
[399830111,1766711440380,-496.47127164,0.00016306,3]
[399830113,1766711440390,-151.0,0.00016306,3]
[399830114,1766711440402,-151.0,0.00016306,3]
[399830115,1766711440413,-500.0,0.00016306,3]
[399830116,1766711440423,-151.0,0.00016306,3]
[399830117,1766711440436,-151.0,0.00016306,3]
[399830119,1766711440447,-500.0,0.00016306,3]
[399830121,1766711440459,-151.0,0.00016306,3]
[399830123,1766711440470,-514.84070869,0.00016306,3]
[399830125,1766711440480,-500.0,0.00016306,3]
[399830127,1766711440491,-151.0,0.00016306,3]
[399830129,1766711440503,-151.0,0.00016306,3]
[399830132,1766711440514,-533.88981491,0.00016306,3]
[399830134,1766711440525,-500.0,0.00016306,3]
[399830136,1766711440536,-151.0,0.00016306,3]
[399830138,1766711440547,-151.0,0.00016306,3]
[399830140,1766711440558,-553.64373807,0.00016306,3]
[399830142,1766711440569,-500.0,0.00016306,3]
[399830144,1766711440580,-151.0,0.00016306,3]
[399830146,1766711440591,-151.0,0.00016306,3]
[399830148,1766711440603,-574.12855637,0.00016306,3]
[399830150,1766711440614,-500.0,0.00016306,3]
[399830153,1766711440625,-151.0,0.00016306,3]
[399830155,1766711440635,-151.0,0.00016306,3]
[399830157,1766711440646,-595.37131296,0.00016306,3]
[399830159,1766711440656,-500.0,0.00016306,3]
[399830161,1766711440667,-151.0,0.00016306,3]
[399830163,1766711440678,-151.0,0.00016306,3]
[399830165,1766711440689,-617.40005154,0.00016306,3]
[399830167,1766711440700,-500.0,0.00016306,3]
[399830169,1766711440710,-151.0,0.00016306,3]
[399830171,1766711440721,-151.0,0.00016306,3]
[399830173,1766711440732,-640.24385345,0.00016306,3]
[399830176,1766711440743,-453.93245012,0.00016306,3]
[399830178,1766711440754,-151.0,0.00016306,3]
[399830180,1766711440765,-151.0,0.00016306,3]
[399830182,1766711440776,-663.93287602,0.00016306,3]
[399830184,1766711440787,-151.0,0.00016306,3]
[399830186,1766711440797,-151.0,0.00016306,3]
[399830188,1766711440808,-688.49839244,0.00016306,3]
[399830191,1766711440819,-151.0,0.00016306,3]
[399830193,1766711440830,-151.0,0.00016306,3]
[399830195,1766711440842,-713.97283296,0.00016306,3]
[399830223,1766711441107,-151.0,0.00016306,3]
[399830226,1766711441124,-740.38982778,0.00016306,3]
[399830227,1766711441134,-767.7842514,0.00016306,3]
[399830229,1766711441143,-151.0,0.00016306,3]
[399830231,1766711441153,-151.0,0.00016306,3]
[399830233,1766711441163,-796.19226871,0.00016306,3]
[399830235,1766711441175,-159.95154747,0.00016306,3]
[399830237,1766711441185,-151.0,0.00016306,3]
[399830239,1766711441195,-825.65138265,0.00016306,3]
[399830241,1766711441205,-151.0,0.00016306,3]
[399830243,1766711441215,-151.0,0.00016306,3]
[399830245,1766711441225,-290.10990042,0.00016306,3]
[399830247,1766711441235,-151.0,0.00016306,3]
[399830249,1766711441245,-151.0,0.00016306,3]
[399830251,1766711441255,-151.0,0.00016306,3]
[399830253,1766711441265,-152.96816448,0.00016306,3]
[399830255,1766711441275,-169.57,0.00016355,2]
[399830257,1766711441285,-2131.81202102,0.00016401,2]
[399830259,1766711441295,-187.585006,0.00016431,2]
[399830261,1766711441306,-187.585006,0.00016431,2]
[399830263,1766711441316,-187.585006,0.00016431,2]
[399830265,1766711441326,-187.585006,0.00016431,2]
[399830267,1766711441336,-660.0,0.00016438,2]
[399830269,1766711441346,-1449.74945289,0.00016501,2]
[399830271,1766711441359,-784.57435279,0.00016526,16]
[399830273,1766711441369,-600.0,0.00016542,2]
[399830275,1766711441380,-284.60329063,0.00016567,6]
[399830277,1766711441389,-379.85495188,0.00016579,23]
[399830279,1766711441400,-1000.0,0.000166,6]
[399830281,1766711441410,-784.57435279,0.00016808,20]
[399830283,1766711441420,-3069.80931027,0.00016897,2]
[399830285,1766711441431,-379.85495188,0.00016974,25]
[399830287,1766711441441,-760.0,0.00016986,2]
[399830289,1766711441453,-784.57435279,0.0001709,24]
[399830291,1766711441463,-2265.23352014,0.00017195,2]
[399830293,1766711441472,-151.0,0.00017256,2]
[399830295,1766711441482,-151.0,0.00017256,2]
[399830297,1766711441492,-151.0,0.00017256,2]
[399830299,1766711441502,-156.104203,0.00017256,2]
[399830301,1766711441512,-449.9706,0.00017256,2]
[399830303,1766711441522,-379.85495188,0.00017369,26]
[399830305,1766711441533,-784.57435279,0.00017371,28]
[399830307,1766711441542,-285.0,0.00017374,2]
[399830309,1766711441552,-4178.35156121,0.00017392,2]
[399830311,1766711441562,-860.0,0.00017534,2]
[399830313,1766711441572,-170.32064844,0.00017596,23]
[399830315,1766711441581,-968.42044183,0.000176,2]
[399830317,1766711441591,-784.57435279,0.00017653,31]
[399830319,1766711441601,-284.60329063,0.00017733,10]
[399830321,1766711441611,-5368.0,0.00017754,2]
[399830323,1766711441620,-379.85495188,0.00017763,28]
[399830325,1766711441630,-1000.0,0.00017797,2]
[399830327,1766711441640,-150.0,0.00017879,2]
[399830329,1766711441650,-2161.0,0.00017879,2]
[399830331,1766711441659,-1363.0,0.00017879,2]
[399830333,1766711441669,-633.0,0.00017879,2]
[399830335,1766711441680,-416.0,0.00017879,2]
[399830337,1766711441690,-5451.98133505,0.00017888,2]
[399830339,1766711441701,-3258.67433273,0.00017888,2]
[399830341,1766711441711,-784.57435279,0.00017935,35]
[399830343,1766711441720,-960.0,0.00018082,2]
[399830345,1766711441730,-501.07435063,0.00018097,2]
[399830346,1766711441739,-379.85495188,0.00018158,29]
[399830349,1766711441750,-160.0,0.00018159,5]
[399830351,1766711441760,-720.0,0.00018196,2]
[399830353,1766711441770,-784.57435279,0.00018216,39]
[399830355,1766711441781,-600.0,0.00018356,7]
[399830357,1766711441791,-151.0,0.00018481,2]
[399830359,1766711441800,-151.0,0.00018481,2]
[399830361,1766711441810,-151.0,0.00018481,2]
[399830363,1766711441819,-784.57435279,0.00018498,42]
[399830365,1766711441830,-187.585006,0.00018498,2]
[399830367,1766711441839,-187.585006,0.00018498,2]
[399830369,1766711441849,-187.585006,0.00018498,2]
[399830371,1766711441859,-187.585006,0.00018498,2]
[399830373,1766711441869,-379.85495188,0.00018553,30]
[399830375,1766711441878,-1060.0,0.0001863,2]
[399830377,1766711441888,-800.0,0.00018694,2]
[399830379,1766711441898,-784.57435279,0.00018779,46]
[399830381,1766711441908,-1000.0,0.00018887,2]
[399830383,1766711441918,-302.96970909,0.000189,2]
[399830385,1766711441928,-302.96970909,0.000189,2]
[399830387,1766711441938,-284.60329063,0.000189,14]
[399830389,1766711441947,-800.0,0.00018903,2]
[399830391,1766711441958,-1111.8561452,0.00018916,3]
[399830393,1766711441967,-800.0,0.00018925,2]
[399830395,1766711441977,-800.0,0.00018928,2]
[399830397,1766711441987,-379.85495188,0.00018948,30]
[399830399,1766711441997,-1000.0,0.00018989,2]
[399830401,1766711442007,-168485.46019,0.00019,2]
[399830403,1766711442017,-800.0,0.00019024,2]
[399830405,1766711442028,-784.57435279,0.00019061,50]
[399830407,1766711442037,-800.0,0.00019081,2]
[399830409,1766711442048,-302.96970923,0.00019089,2]
[399830411,1766711442059,-302.96970909,0.00019089,2]
[399830413,1766711442070,-800.0,0.00019137,2]
[399830415,1766711442080,-800.0,0.0001915,2]
[399830417,1766711442090,-187.585006,0.00019178,2]
[399830419,1766711442099,-187.585006,0.00019178,2]
[399830421,1766711442110,-187.585006,0.00019178,2]
[399830423,1766711442120,-187.584998,0.00019178,2]
[399830425,1766711442130,-1160.0,0.00019178,2]
[399830427,1766711442139,-2000.00509817,0.00019178,2]
[399830429,1766711442149,-187.029293,0.00019178,2]
[399830431,1766711442158,-151.0,0.00019178,2]
[399830433,1766711442168,-151.0,0.00019178,2]
[399830435,1766711442177,-151.0,0.00019178,2]
[399830437,1766711442188,-151.0,0.00019178,2]
[399830439,1766711442199,-151.0,0.00019178,2]
[399830441,1766711442209,-151.0,0.00019178,2]
[399830443,1766711442219,-151.0,0.00019178,2]
[399830445,1766711442229,-151.0,0.00019178,2]
[399830447,1766711442239,-151.0,0.00019178,2]
[399830449,1766711442248,-151.0,0.00019178,2]
[399830451,1766711442258,-151.0,0.00019178,2]
[399830453,1766711442269,-151.0,0.00019178,2]
[399830455,1766711442278,-151.0,0.00019178,2]
[399830457,1766711442292,-151.0,0.00019178,2]
[399830459,1766711442301,-151.0,0.00019178,2]
[399830461,1766711442311,-151.0,0.00019178,2]
[399830463,1766711442321,-151.0,0.00019178,2]
[399830465,1766711442331,-244.563415,0.00019178,2]
[399830467,1766711442341,-5266.734898,0.00019178,2]
[399830469,1766711442351,-5266.734898,0.00019178,2]
[399830471,1766711442363,-5266.734898,0.00019178,2]
[399830473,1766711442373,-5266.734898,0.00019178,2]
[399830475,1766711442383,-5266.734898,0.00019178,2]
[399830477,1766711442393,-5266.734898,0.00019178,2]
[399830479,1766711442403,-5266.734898,0.00019178,2]
[399830481,1766711442413,-5266.734898,0.00019178,2]
[399830482,1766711442422,-5266.734898,0.00019178,2]
[399830484,1766711442433,-5266.734898,0.00019178,2]
[399830486,1766711442443,-5266.734898,0.00019178,2]
[399830488,1766711442454,-5266.734898,0.00019178,2]
[399830490,1766711442464,-5266.734898,0.00019178,2]
[399830492,1766711442474,-5266.734898,0.00019178,2]
[399830494,1766711442483,-5266.734898,0.00019178,2]
[399830496,1766711442494,-5266.734898,0.00019178,2]
[399830497,1766711442504,-5266.734898,0.00019178,2]
[399830499,1766711442514,-5266.734898,0.00019178,2]
[399830501,1766711442523,-5266.734898,0.00019178,2]
[399830503,1766711442533,-5266.734903,0.00019178,2]
[399830505,1766711442543,-600.0,0.000192,2]
[399830507,1766711442554,-800.0,0.00019227,2]
[399830509,1766711442564,-302.96970909,0.00019278,2]
[399830511,1766711442573,-800.0,0.00019283,2]
[399830513,1766711442582,-151.0,0.00019305,2]
[399830515,1766711442592,-151.0,0.00019305,2]
[399830517,1766711442602,-379.85495188,0.00019342,30]
[399830519,1766711442612,-784.57435279,0.00019343,54]
[399830521,1766711442622,-600.0,0.000194,2]
[399830523,1766711442632,-302.96970909,0.00019467,2]
[399830525,1766711442641,-151.0,0.0001947,2]
[399830527,1766711442651,-227.695968,0.0001947,2]
[399830528,1766711442660,-293.94308259,0.00019483,56]
[399830529,1766711442670,-218.22456123,0.00019483,56]
[399830530,1766711442681,-15010.20434301,0.000195,5]
[399830531,1766711442691,-200.0,0.00019526,120]
[399830532,1766711442700,-5000.0,0.00019552,2]
[399830533,1766711442710,-500.0,0.00019555,2]
[399830534,1766711442719,-800.0,0.00019576,2]
[399830535,1766711442729,-600.0,0.000196,2]
[399830536,1766711442739,-784.57435279,0.00019624,57]
[399830537,1766711442748,-302.96970909,0.00019656,2]
[399830538,1766711442758,-800.0,0.00019697,2]
[399830539,1766711442768,-1462.59120402,0.000197,3]
[399830540,1766711442778,-800.0,0.00019708,2]
[399830541,1766711442787,-1260.0,0.00019726,2]
[399830542,1766711442797,-379.85495188,0.00019737,30]
[399830543,1766711442807,-1000.0,0.00019744,2]
[399830544,1766711442816,-151.0,0.00019748,2]
[399830545,1766711442825,-800.0,0.00019773,2]
[399830546,1766711442834,-800.0,0.00019786,2]
[399830547,1766711442844,-170.32064844,0.00019791,45]
[399830548,1766711442853,-800.0,0.00019796,2]
[399830549,1766711442863,-904.73,0.000198,30]
[399830550,1766711442872,-5000.0,0.000198,30]
[399830551,1766711442882,-5000.0,0.000198,30]
[399830552,1766711442891,-5000.0,0.000198,30]
[399830553,1766711442901,-5000.0,0.000198,30]
[399830554,1766711442911,-5000.0,0.000198,30]
[399830555,1766711442920,-5000.0,0.000198,30]
[399830557,1766711442930,-5000.0,0.000198,30]
[399830559,1766711442940,-5000.0,0.000198,30]
[399830560,1766711442950,-3934.3,0.000198,30]
[399830562,1766711442960,-1009.48,0.000198,10]
[399830564,1766711442971,-600.0,0.000198,2]
[399830566,1766711442981,-800.0,0.0001983,2]
[399830567,1766711442990,-642.1191914,0.0001983,2]
[399830569,1766711443001,-800.0,0.00019831,2]
[399830571,1766711443012,-307.23996666,0.00019845,4]
[399830573,1766711443021,-8394.18,0.000199,2]
[399830575,1766711443031,-31379.63,0.000199,2]
[399830577,1766711443042,-401.75,0.000199,2]
[399830579,1766711443052,-151.0,0.000199,2]
[399830581,1766711443061,-1000.0,0.000199,5]
[399830583,1766711443072,-784.57435279,0.00019906,61]
[399830586,1766711443082,-1000.0,0.0001992,5]
[399830588,1766711443092,-800.0,0.00019921,2]
[399830590,1766711443103,-1000.0,0.0001994,5]
[399830592,1766711443113,-1000.0,0.0001996,5]
[399830594,1766711443124,-800.0,0.00019973,2]
[399830597,1766711443134,-800.0,0.00019978,2]
[399830599,1766711443144,-1000.0,0.0001998,5]
[399830603,1766711443154,-800.0,0.00019987,2]
[399830605,1766711443164,-72.73080492,0.0002,2]
[399830607,1766711443174,-1002.0,0.0002,30]
[399830609,1766711443185,-500.0,0.0002,10]
[399830611,1766711443194,-253.11698159,0.0002,21]
[399830613,1766711443206,-340.1624004,0.0002,5]
[399830615,1766711443216,-9173.73043525,0.0002,2]
[399830617,1766711443226,-966.0,0.0002,2]
[399830619,1766711443237,-1027.33006834,0.0002,10]
[399830620,1766711443246,-40750.68825384,0.0002,20]
[399830623,1766711443257,-26490.0289577,0.0002,30]
[399830624,1766711443268,-2000.0,0.0002,33]
[399830626,1766711443279,-1595.69393743,0.0002,2]
[399830628,1766711443288,-159.62691019,0.0002,2]
[399830630,1766711443299,-371.22,0.0002,2]
[399830632,1766711443309,-166.2,0.0002,2]
[399830634,1766711443319,-150.0,0.0002,2]
[399830636,1766711443329,-1000.0,0.0002,5]
[399830638,1766711443339,-151.48485454,0.0002,2]
[399830640,1766711443348,-250.0,0.0002,10]
[399830641,1766711443359,-150.0,0.0002,2]
[399830643,1766711443370,-600.0,0.0002,2]
[399830645,1766711443381,-200.0,0.00020007,120]
[399830647,1766711443390,-864.0,0.00020016,2]
[399830649,1766711443402,-284.60329063,0.00020067,18]
[399830651,1766711443412,-250.0,0.000201,10]
[399830653,1766711443421,-377.17416405,0.0002013,2]
[399830655,1766711443432,-379.85495188,0.00020132,30]
[399830657,1766711443442,-942.026971,0.00020187,2]
[399830659,1766711443453,-784.57435279,0.00020188,65]
[399830661,1766711443463,-250.0,0.000202,10]
[399830663,1766711443473,-600.0,0.000202,2]
[399830665,1766711443483,-5000.0,0.00020274,2]
[399830667,1766711443493,-1360.0,0.00020274,2]
[399830669,1766711443504,-250.0,0.000203,10]
[399830671,1766711443514,-500.0,0.00020308,2]
[399830673,1766711443526,-207.07758759,0.00020349,7]
[399830675,1766711443535,-150.0,0.00020349,7]
[399830681,1766711443587,-250.0,0.000204,10]
[399830683,1766711443598,-600.0,0.000204,2]
[399830685,1766711443608,-784.57435279,0.00020469,69]
[399830687,1766711443617,-250.0,0.000205,10]
[399830689,1766711443626,-759.60990377,0.00020526,30]
[399830690,1766711443635,-151.0,0.000206,3]
[399830692,1766711443644,-250.0,0.000206,10]
[399830694,1766711443654,-600.0,0.000206,2]
[399830696,1766711443663,-1385.78661963,0.0002061,2]
[399830698,1766711443673,-1173.43966304,0.00020623,7]
[399830700,1766711443682,-1000.0,0.00020668,2]
[399830702,1766711443692,-250.0,0.000207,10]
[399830704,1766711443704,-183.9206414,0.00020736,2]
[399830706,1766711443713,-183.9206414,0.00020736,2]
[399830708,1766711443722,-183.9206414,0.00020736,2]
[399830709,1766711443732,-183.9206414,0.00020736,2]
[399830711,1766711443742,-183.9206414,0.00020736,2]
[399830713,1766711443751,-183.9206414,0.00020736,2]
[399830715,1766711443761,-183.9206414,0.00020736,2]
[399830717,1766711443770,-183.9206414,0.00020736,2]
[399830719,1766711443780,-784.57435279,0.00020751,72]
[399830721,1766711443790,-250.0,0.000208,10]
[399830723,1766711443800,-600.0,0.000208,2]
[399830725,1766711443810,-1460.0,0.00020822,2]
[399830727,1766711443820,-1000.0,0.00020867,2]
[399830729,1766711443829,-150.0,0.00020879,2]
[399830731,1766711443838,-2161.0,0.00020879,2]
[399830733,1766711443848,-1363.0,0.00020879,2]
[399830734,1766711443858,-633.0,0.00020879,2]
[399830736,1766711443867,-245.84536897,0.00020889,16]
[399830738,1766711443877,-150.77371154,0.00020889,56]
[399830740,1766711443886,-255.76346782,0.000209,2]
[399830742,1766711443896,-250.0,0.000209,10]
[399830744,1766711443906,-1000.0,0.0002094,2]
[399830746,1766711443916,-5000.0,0.00020996,2]
[399830748,1766711443926,-15130.58379297,0.00021,2]
[399830750,1766711443937,-24683.70583965,0.00021,2]
[399830752,1766711443955,-23590.51376869,0.00021,2]
[399830850,1766711894348,-5000.0,8.163e-05,2]
[399830851,1766711894898,-150.0,8.245e-05,2]
[399830852,1766711904304,5000.0,8.448e-05,2]
[399830857,1766712363285,-5000.0,8.068e-05,2]
[399830858,1766712363675,-150.0,8.19e-05,2]
[399830859,1766712363705,-536.0,8.231e-05,2]
[399830860,1766712363738,-150.0,8.286e-05,2]
[399830861,1766712363766,-500.0,8.428e-05,2]
[399830862,1766712376158,5000.0,8.51e-05,2]
[399830877,1766712632578,-402.39562265,8.178e-05,2]
[399830880,1766712632591,-4597.60437735,8.178e-05,2]
[399830882,1766712632602,-535.0,8.178e-05,2]
[399830884,1766712632612,-150.0,8.261e-05,2]
[399830886,1766712632622,-150.0,8.366e-05,2]
[399830888,1766712632633,-500.0,8.47e-05,2]
[399830890,1766712632643,-150.0,8.68e-05,2]
[399830892,1766712632658,-500.0,8.9e-05,2]
[399830894,1766712632668,-216.34,9.031e-05,2]
[399830896,1766712632678,-288.45,9.424e-05,2]
[399830898,1766712632687,-300.0,9.655e-05,2]
[399830900,1766712632696,-300.0,9.655e-05,2]
[399830903,1766712632708,-300.0,9.655e-05,2]
[399830906,1766712632720,-300.0,9.655e-05,2]
[399830908,1766712632730,-300.0,9.655e-05,2]
[399830910,1766712632740,-300.0,9.655e-05,2]
[399830912,1766712632749,-300.0,9.655e-05,2]
[399830914,1766712632759,-300.0,9.655e-05,2]
[399830915,1766712632769,-13.91357383,9.655e-05,2]
[399830918,1766712632782,-275.28991896,9.655e-05,2]
[399831080,1766712640791,-10.79650721,9.655e-05,2]
[399831081,1766712640802,-300.0,9.655e-05,2]
[399831082,1766712640813,-300.0,9.655e-05,2]
[399831083,1766712640823,-300.0,9.655e-05,2]
[399831084,1766712640833,-300.0,9.655e-05,2]
[399831085,1766712640843,-289.19155279,9.655e-05,2]
[399831086,1766712640898,-10.80844721,9.655e-05,2]
[399831087,1766712640909,-300.0,9.655e-05,2]
[399831088,1766712640920,-360.56,9.816e-05,2]
[399831089,1766712640929,-395.16584937,9.847e-05,2]
[399831588,1766712646710,-5000.0,9.749e-05,2]
[399831589,1766712646721,-204.83415063,9.847e-05,2]
[399831591,1766712646731,-500.0,9.883e-05,2]
[399831593,1766712646742,-222.02,0.0001,2]
[399831595,1766712646752,-222.02,0.000102,2]
[399831597,1766712646762,-432.67,0.00010209,2]
[399831598,1766712646771,-177.0,0.00010366,2]
[399831599,1766712646781,-222.02,0.000104,2]
[399831600,1766712646791,-222.02,0.000106,2]
[399831601,1766712646801,-504.79,0.00010602,2]
[399831602,1766712646810,-292.62584937,0.00010772,2]
[399831603,1766712646822,-207.37415063,0.00010772,2]
[399831604,1766712646832,-222.02,0.000108,2]
[399831605,1766712646841,-720.0,0.00010832,2]
[399831606,1766712646852,-250.24328331,0.00010916,2]
[399831607,1766712646862,-500.0,0.00010956,2]
[399831608,1766712646871,-61.78016951,0.00010994,2]
[399831609,1766712646920,-515.11983049,0.00010994,2]
[399831611,1766712646931,-222.02,0.00011,2]
[399831613,1766712646940,-500.0,0.00011157,2]
[399831615,1766712646950,-500.0,0.00011259,2]
[399831617,1766712646960,-649.01,0.00011387,2]
[399831619,1766712646969,-721.12,0.0001178,2]
[399831620,1766712646979,-864.0,0.00011915,2]
[399831621,1766712646988,-500.0,0.00012588,2]
[399831622,1766712646998,-500.0,0.0001275,2]
[399831623,1766712647008,-500.0,0.00012828,2]
[399831624,1766712647018,-1000.0,0.00013106,2]
[399831625,1766712647028,-236.89008158,0.00013215,2]
[399831626,1766712647037,-500.91877304,0.00013388,2]
[399831627,1766712647050,-847.824273,0.00013699,2]
[399831628,1766712647060,-1000.0,0.00014417,2]
[399831629,1766712647070,-244.0,0.00014417,2]
[399831630,1766712647080,-530.63331091,0.00015,3]
[399831631,1766712647089,-327.0,0.00015,2]
[399831632,1766712647098,-170.32064844,0.000154,2]
[399831633,1766712647108,-160.0,0.000155,2]
[399831634,1766712647118,-1000.0,0.00015859,2]
[399831635,1766712647128,-492.0,0.00015859,2]
[399831636,1766712647137,-500.0,0.00016018,2]
[399831637,1766712647147,-260.0,0.00016048,2]
[399831638,1766712647156,-162.79457836,0.00016069,2]
[399831639,1766712647166,-500.0,0.00016541,2]
[399831640,1766712647175,-360.0,0.00016596,2]
[399831641,1766712647185,-500.0,0.00016729,2]
[399831642,1766712647195,-460.0,0.00017144,2]
[399831643,1766712647205,-500.0,0.00017154,2]
[399831644,1766712647215,-500.0,0.00017171,2]
[399831645,1766712647225,-500.0,0.00017444,2]
[399831646,1766712647235,-500.0,0.00017444,2]
[399831647,1766712647245,-208.46666694,0.00017444,2]